Cogmind - Beta 16 @@@ ROGUE MODE // 2025.11.05 @ 19:47:28 Player: khaki-45e Result: Self-destructed Performance ------------- Evolutions (1) 500 Regions Visited (2) 400 Robots Destroyed (18) 90 Value Destroyed (378) 378 Prototype IDs (5) 100 Alien Tech Used (0) 0 Bonus (0) 0 TOTAL SCORE: 1468 Bonus ------- None Cogmind --------- Core Integrity 233/400 Matter 255/300 Energy 23/100 System Corruption 0% Temperature Cool (2) Movement Flying (37) Location -9/Materials Parts ------- > --- POWER (1) -------- (None) > --- PROPULSION (3) --- Improved Flight Unit Improved Flight Unit Improved Flight Unit > --- UTILITY (3) ------ Improved Heat Sink Seismic Detector ECM Suite > --- WEAPON (2) ------- Improved Light Cannon > --- INVENTORY (5) ---- Ion Engine Improved Flight Unit Small Storage Unit Weight Redist. System Hardened Light Armor Plating Peak State ------------ > --- POWER ------------ Light Nuclear Core > --- PROPULSION ------- Improved Hover Unit Improved Flight Unit Improved Flight Unit > --- UTILITY ---------- Improved Heat Sink Small Storage Unit Seismic Detector > --- WEAPON ----------- Light Assault Rifle Light Assault Rifle > --- INVENTORY -------- Light Ion Engine Improved Hover Unit Improved Hover Unit Small Battery Weight Redist. System Terrain Scanner ECM Suite [Rating: 19] Favorites ----------- Power Light Nuclear Core Engine Light Ion Engine Power Core Light Nuclear Core Propulsion Improved Hover Unit Leg Aluminum Leg Hover Unit Improved Hover Unit Flight Unit Improved Flight Unit Utility Small Storage Unit Device Seismic Detector Storage Small Storage Unit Weapon Light Assault Rifle Energy Gun Medium Laser Ballistic Gun Light Assault Rifle Ballistic Cannon Improved Light Cannon Launcher Grenade Launcher Build | -11 -10 -9 ------- Run | Yrd Mat Mat Slots Evolved 2 | . . 2 Power . | . . . Propulsion 1 | . . 1 Utility 1 | . . 1 Weapon . | . . . Parts Attached 28 | 6 14 8 Power 5 | 1 3 1 Engine 3 | 1 1 1 Core 2 | . 2 . Reactor . | . . . Propulsion 12 | 2 5 5 Treads . | . . . Leg 3 | 2 1 . Wheel . | . . . Hover 5 | . 4 1 Flight 4 | . . 4 Utility 5 | 1 3 1 Device 4 | . 3 1 Storage 1 | 1 . . Processor . | . . . Hackware . | . . . Protection . | . . . Artifact . | . . . Weapon 6 | 2 3 1 Energy Gun 1 | 1 . . Energy Cannon . | . . . Ballistic Gun 3 | 1 2 . Ballistic Cannon 1 | . . 1 Launcher 1 | . 1 . Special Weapon . | . . . Impact Weapon . | . . . Slashing Weapon . | . . . Piercing Weapon . | . . . Special Melee Weapon . | . . . Unidentified Prototypes 1 | . . 1 Parts Lost 8 | . 5 3 Power 4 | . 2 2 Propulsion 1 | . 1 . Utility . | . . . Weapon 3 | . 2 1 Highest Loss Streak 3 | . 3 2 To Critical Strikes 1 | . . 1 Average Backups 6 | 1 7 5 Power 1 | . 1 . Propulsion 1 | . 2 1 Utility 3 | . 3 3 Weapon . | . . . Tool/Special . | . . . Unused Backups 11 | . 6 5 Power 1 | . . 1 Propulsion 5 | . 4 1 Utility 5 | . 2 3 Weapon . | . . . Tool/Special . | . . . Average Slot Usage (%) 95 | . 94 96 Engine 2 | . 2 2 Core 10 | . 10 7 Leg 6 | . 8 . Hover 17 | . 19 8 Flight 5 | . . 23 Device 14 | . 9 29 Storage 11 | . 14 3 Energy Gun 3 | . 4 . Ballistic Gun 21 | . 22 18 Peak Build Rating 19 | 6 14 19 Average Rating 11 | 5 10 17 On Entrance 5 | . 6 11 Avg Prop Armor Cover (%) 2 | . . 2 Naked Turns . | . . . Heaviest Build 15 | 11 14 15 Greatest Support 20 | 20 20 20 Greatest Overweight (x) 4 | . 4 1 Average Overweight (x) . | . . . Largest Inventory Capacity 8 | 8 8 8 Average Capacity 7 | 7 8 5 Most Carried 8 | 4 8 8 Average Carried 6 | 1 7 5 Final Capacity 8 | 8 8 5 Final Carried 8 | 2 8 5 Class Distribution -------------------- 56% | Mutant 43% | Scavenger-Mutant Dominant Class ---------------- Mutant | -10/Materials Scavenger-Mutant | -9/Materials Resources | -11 -10 -9 ----------- Run | Yrd Mat Mat Matter Collected 581 | 226 269 86 Remotely . | . . . Salvage Created 507 | . 421 86 Parts 36 | 1 33 2 Haulers Intercepted 3 | . 2 1 Recyclers Shooed 2 | 1 . 1 Parts Field Recycled . | . . . Retrieved Matter . | . . . Parts Self-Destructed . | . . . Prevented . | . . . Parts Restored . | . . . Kills | -11 -10 -9 ------- Run | Yrd Mat Mat Combat Hostiles Destroyed 14 | . 13 1 Guns 14 | . 13 1 Classes Destroyed 4 | 1 3 . Tunneler 1 | 1 . . Hauler 3 | . 2 1 Swarmer 6 | . 6 . Grunt 8 | . 7 1 Best Kill Streak 3 | 1 3 1 Combat Bots Only 3 | . 3 1 Max Kills in Single Turn 2 | 1 2 1 Gunslinging 1 | . 1 . Exploded . | . . . Melee . | . . . Uniques/NPCs Destroyed . | . . . Combat | -11 -10 -9 -------- Run | Yrd Mat Mat Hostile Shots Fired 147 | . 86 61 Missed 44 | . 21 23 Hits 103 | . 65 38 Projectile 103 | . 65 38 Critical Strikes 1 | . . 1 Damage Taken 1148 | . 747 401 Core 333 | . 166 167 Absorbed by Shields . | . . . Regen/Repaired (Parts) 30 | . 30 . Core Remaining (%) 66 | 100 33 . Volleys Fired 112 | 4 90 18 Largest 2 | 2 2 2 Hottest 70 | 70 70 53 Shots Fired 202 | 8 158 36 Gun 199 | 8 157 34 Cannon 2 | . . 2 Launcher 1 | . 1 . Special . | . . . Kinetic 159 | 4 119 36 Thermal 42 | 4 38 . Explosive 1 | . 1 . Electromagnetic . | . . . Robot Hit Streak 15 | 3 15 3 Robot Miss Streak 5 | 1 5 4 Penetration Max . | . . . Secondary Targets 4 | . 4 . Max Gunslinging Chain 1 | . 1 . Shots Hit Robots 114 | 5 89 20 Core Hits 51 | 4 38 9 Critical Kills . | . . . Critical Parts Destroyed . | . . . Critical Strikes 2 | . 2 . Burn 2 | . 2 . Melee Attacks . | . . . Impact . | . . . Slashing . | . . . Piercing . | . . . Sneak Attacks . | . . . Combat Hostiles . | . . . Follow-up Attacks . | . . . Damage Inflicted 1120 | 61 895 164 Guns 1041 | 43 834 164 Cannons . | . . . Explosions 61 | . 61 . Melee . | . . . Ramming 18 | 18 . . Kinetic 770 | 30 576 164 Thermal 271 | 13 258 . Explosive 61 | . 61 . Electromagnetic . | . . . Impact . | . . . Slashing . | . . . Piercing . | . . . Highest Corruption . | . . . Average Corruption . | . . . Corruption Purged . | . . . Corruption Blocked . | . . . Overload Shots . | . . . Overflow Damage . | . . . Projectiles . | . . . Explosions . | . . . Melee . | . . . Knockbacks . | . . . Impact . | . . . Kinetic . | . . . Secondary . | . . . Self-Inflicted Damage 40 | . 40 . Shots 1 | . 1 . Rammed . | . . . Targets Rammed 7 | 7 . . Kicked 7 | 7 . . Crushed . | . . . Highest Temperature 406 | 40 318 406 Average Temperature 77 | 21 71 170 Received Heat Transfer 375 | . 255 120 Siege Activations . | . . . Martial Activations . | . . . Shielding Activations . | . . . Robots Disrupted . | . . . Combat Hostiles . | . . . Robots Corrupted . | . . . Combat Hostiles . | . . . Parts Fried . | . . . Impact Corruptions . | . . . Robots Melted . | . . . Combat Hostiles . | . . . Parts Melted 1 | . 1 . Heat Transferred 962 | 37 925 . Parts Sabotaged . | . . . Parts Stolen . | . . . Parts Stripped . | . . . Power Chain Reactions . | . . . Alert | -11 -10 -9 ------- Run | Yrd Mat Mat Maximum Alert Level . | . . . Low Security (%) 100 | 100 100 100 Level 1 . | . . . Level 2 . | . . . Level 3 . | . . . Level 4 . | . . . Level 5 . | . . . High Security . | . . . Max Security . | . . . Peak Influence 70 | . 70 30 Initial . | . . . Average 15 | . 20 3 Influence Increases 429 | 5 367 57 Destroy 0b10 Robot/C 280 | . 260 20 Destroy 0b10 Robot/NC 20 | 5 10 5 Destroy Leader 66 | . 64 2 Successful Hack 9 | . 9 . Disable Machine 30 | . . 30 Destroy Structure 9 | . 9 . Lose Combat Pursuer 15 | . 15 . Influence Decreases 429 | 5 367 57 Time Decay 384 | 5 332 47 Lost Part 45 | . 35 10 Squads Dispatched 4 | . 4 . Investigation 2 | . 2 . Extermination . | . . . Reinforcement 2 | . 2 . Assault . | . . . Garrison . | . . . Intercept . | . . . Searches Triggered . | . . . Construction Impeded . | . . . Haulers Reinforced . | . . . Active Scanning Responses . | . . . Cargo Convoy Interrupts . | . . . Stealth | -11 -10 -9 --------- Run | Yrd Mat Mat Distress Signals 2 | . . 2 Communications Jammed . | . . . Distress Signals . | . . . Times Spotted 60 | . 25 35 Peak Tracking Total 11 | . 3 11 Tactical Retreats 9 | . 1 8 ECM-based Alert Blocks 23 | . . 23 Traps | -11 -10 -9 ------- Run | Yrd Mat Mat Traps Triggered 1 | . 1 . Indirectly . | . . . Trap Hack Attempts . | . . . Triggered . | . . . Disarmed . | . . . Reprogrammed . | . . . Reused . | . . . Traps Extracted . | . . . Installed . | . . . Triggered . | . . . Machines | -11 -10 -9 ---------- Run | Yrd Mat Mat Machines Disabled 2 | . . 2 Max in Single Turn 1 | . . 1 Machines Repaired . | . . . Machines Dismantled . | . . . Machines Sabotaged . | . . . Overloaded Fab Kills . | . . . Hacking | -11 -10 -9 --------- Run | Yrd Mat Mat Machines Accessed 7 | . 6 1 Terminals 3 | . 3 . Fabricators . | . . . Repair Stations 1 | . 1 . Recycling Units 3 | . 2 1 Scanalyzers . | . . . Garrison Access . | . . . Total Hacks 15 | . 14 1 Successful 9 | . 8 1 Failed 6 | . 6 . Catastrophic . | . . . Database Lockouts . | . . . Manual . | . . . Terminals 5 | . 5 . Fabricators . | . . . Repair Stations 4 | . 4 . Recycling Units 6 | . 5 1 Scanalyzers . | . . . Garrison Access . | . . . Terminal Hacks 3 | . 3 . Prototype ID Bank 2 | . 2 . Branch Access Points 1 | . 1 . Fabricator Hacks . | . . . Repair Station Hacks 2 | . 2 . Scan Component 1 | . 1 . Repair 1 | . 1 . Recycling Unit Hacks 4 | . 3 1 Report Inventory 3 | . 2 1 Retrieve Components 1 | . 1 . Scanalyzer . | . . . Garrison Access Hacks . | . . . Unauthorized Hacks . | . . . Terminals . | . . . Fabricators . | . . . Repair Stations . | . . . Recycling Units . | . . . Scanalyzers . | . . . Garrison Access . | . . . Data Cores Recovered . | . . . Used . | . . . Hacking Detections 3 | . 3 . Full Trace Events 1 | . 1 . Feedback Events . | . . . Feedback Blocked . | . . . Robot Schematics Acquired . | . . . Robots Built . | . . . Authchips . | . . . Time . | . . . Total Robot Build Rating . | . . . Part Schematics Acquired . | . . . Parts Built . | . . . Authchips . | . . . Time . | . . . Total Part Build Rating . | . . . Part Studies Acquired . | . . . Parts Repaired 1 | . 1 . Time 32 | . 32 . Parts Recycled . | . . . Recycled Matter . | . . . Retrieved Matter . | . . . Retrieved Components 1 | . 1 . Parts Scanalyzed . | . . . Part Schematics Acquired . | . . . Parts Damaged . | . . . Bothacking | -11 -10 -9 ------------ Run | Yrd Mat Mat Used RIF Installer . | . . . Robots Hacked . | . . . Non-combat . | . . . Combat . | . . . Robot Hacks Applied . | . . . Relay Couplers Released . | . . . Fabnet Peak Effective % . | . . . Robots Rewired . | . . . Allies Hacked . | . . . Hacks Repelled . | . . . Allies | -11 -10 -9 -------- Run | Yrd Mat Mat Total Allies . | . . . Largest Group . | . . . Highest-Rated Group . | . . . Highest-Rated Ally . | . . . Total Orders . | . . . Ally Attacks . | . . . Total Damage . | . . . Kills . | . . . Allies Corrupted . | . . . Allies Melted . | . . . Intel | -11 -10 -9 ------- Run | Yrd Mat Mat Active Infowar (turns) 807 | . 505 302 Terrain 49 | . 49 . Seismic 758 | . 456 302 ECM 277 | . . 277 Robot Analysis Total . | . . . Derelict Logs Recovered . | . . . Drone Launches . | . . . Drone Recoveries . | . . . Exploration | -11 -10 -9 ------------- Run | Yrd Mat Mat Turns Passed 1552 | 153 1097 302 Spaces Moved 1673 | 103 1129 441 Core 6 | 5 1 . Treads . | . . . Legs 249 | 98 151 . Wheels . | . . . Hover 1045 | . 977 68 Flight 373 | . . 373 Fastest Speed 34 | 50 56 34 Average Speed 61 | 116 64 41 Slowest Speed 250 | 120 250 107 Overloaded Moves . | . . . Propulsion Burnouts . | . . . Robots Hopped 9 | . . 9 Potential Cave-ins . | . . . Cave-ins Triggered . | . . . Exploration Rate (%) 44 | 7 97 30 Regions Visited 2 Branch Regions . Pre-discovered Areas . | . . . Known Exits Taken . | . . . Unknown Exits Taken 2 | 1 1 . Scrap Searched . | . . . Spaces Dug . | . . . Terrain Destroyed 9 | . 9 . Melee . | . . . Projectile . | . . . AOE 9 | . 9 . Terrain Rammed . | . . . Walls Destroyed . | . . . Machines Disabled . | . . . Actions | -11 -10 -9 --------- Run | Yrd Mat Mat Total 2011 | 127 1361 523 Wait 142 | . 96 46 Move 1653 | 102 1128 423 Hop 9 | . . 9 Pick Up 37 | 8 21 8 Fast Attach 3 | . 2 1 Attach 16 | 6 6 4 Detach . | . . . Swap 12 | . 7 5 Drop 20 | . 11 9 Fire 112 | 4 90 18 Melee . | . . . Ram . | . . . Kick 7 | 7 . . Crush . | . . . Escape Stasis . | . . . Rewire . | . . . Trap . | . . . Miscellaneous . | . . . Route ------- -11/Scrapyard -10/Materials (discovered 4 exits: *Mat x3 / *Min) -9/Materials History --------- Turn | Location | Event 9 | -11/Scrapyard | Discovered new exit (range 16) 154 | -11/Scrapyard | Entered Materials 163 | -10/Materials | Identified exit to Mines 307 | -10/Materials | Build established: Mutant 390 | -10/Materials | Lost 3 parts (1p2w) 517 | -10/Materials | Core integrity fell below 50% 557 | -10/Materials | Discovered new exit (range 16) 696 | -10/Materials | Discovered new exit (range 10) 715 | -10/Materials | Discovered new exit (range 10) 1175 | -10/Materials | Repaired Imp. Hover Unit 1251 | -10/Materials | Entered another Materials area 1251 | -9/Materials | Evolved 2 slots: Propulsion x1, Utility x1 1367 | -9/Materials | Build established: Scavenger-Mutant 1553 | -9/Materials | Self-destructed Last Messages --------------- W-16 Scout sends out distress signal. K-01 Serf collects debris. Lgt. Nuclear Core destroyed. G-34 Mercenary destroyed. K-01 Serf collects debris. Acquired 39 matter. Acquired Ion Engine. Critical hit (Destroy). Lgt. Assault Rifle destroyed. K-01 Serf collects debris. Acquired Imp. Light Cannon. Processing Tank disabled. K-01 Serf collects debris. K-01 Serf cleans the Processing Tank. Processing Tank disabled. K-01 Serf collects debris. W-16 Scout sends out distress signal. K-01 Serf collects debris. Dropped Lgt. Assault Rifle. Lgt. Ion Engine destroyed. Map ----- +----------------------------------------------------+ | | | | | | | | | | | ???????????????????????????????????????? | | ???????????????????????????????????????? | | ???????????????????????????????????????? | | ???????????????????????????????????????? | | ???????????????????????????????????????? | | ???????????????????????????????????????? | | ???????????????????????????????????????? | | ##########?????????????????????????????? | | """ """ #?????????????????????????????? | | """ """ #?????????????????????????????? | | """ """ #?????????????????????????????? | | #?????????????????????????????? | | #?????????????????????????????? | | #?????????????????????????????? | | #?????????????????????????????? | | * #?????????????????????????????? | | ####+#######???????????????????????????? | | ### + #######????????????????#????? | | # # ########+##### #????? | | + # #????? | | # # " s @ #????? | | # # s #????? | | # # ###+### ########????? | | # ## ##?????# #???????????? | | # ## #??????# #???????????? | | ### ######## #??????# +???????????? | | ####/######?# #??????# #???????????? | | # ### #??????# #???????????? | | # """" + #??????# #???????????? | | # """" ### #??????# #???????????? | | # """" #?## ##?????? #???????????? | | # [] #??# #??????? #???????????? | | # #??# #??????? +???????????? | | + ! #### #??????? o#???????????? | | # / #??????? #???????????? | | ####/###########??????? ????????????? | | #?# ??????????????????????????????????? | | ? ??????????????????????????????????? | | ???????????????????????????????????? | | ???????????????????????????????????? | | ##????????????????????????????????????? | | ???????????????????????????????????????? | | ???????????????????????????????????????? | | ???????????????????????????????????????? | | ???????????????????????????????????????? | +----------------------------------------------------+ Best States ------------- Heat Dissipation 42 Energy Generation 14 Energy Capacity 250 Matter Stores 300 Matter Capacity 300 Sight Range 16 Terrain Scan Range 14 Terrain Scan Density 10 ECM Strength 1 Evasion (%) 63 Item Schematics ----------------- None Robot Schematics ------------------ None Fabricated ------------ Nothing Repaired ---------- Imp. Hover Unit | 14% | -10/Materials Studied --------- None Alien Tech Used ----------------- None Achievements -------------- Let's See Who's Tougher Challenges ------------ None Game ------ Seed PulseArcsightDerivative Manual? 0 Play Time 00:29:31 Cumulative 7.9 hours Start 2025.11.05 @ 19:19:43 End 2025.11.05 @ 19:47:28 Sessions 1 Manual Loads 0 Difficulty Rogue Special Mode None Game No. 8 Rogue 8 Adventurer 0 Explorer 0 Win Type - Total 0 Types 0/0/0/0/0/0/0/0/0/0 Lore% 4 Gallery% 8 Achievement% 9 Wizard Run 0 Options --------- Layout 1 ASCII 0 Keyboard 0 Movement Numpad Keybinds 0 Fullscreen 1 Font 32/SmallcapsGlow Map View 50x35 Zoom Use 0% Tactical HUD 0 Map Filters NONE Filters NONE Steam 0 RUN: 707fc2c2-fd99-4110-b33e-c4e03ac211d4